[Event "Live Chess"]
[Site "Chess.com"]
[Date "2023.05.21"]
[Round "-"]
[White "bonantagulo"]
[Black "WelshTiger"]
[Result "0-1"]
[WhiteElo "2080"]
[BlackElo "2312"]
[TimeControl "300"]
[EndTime "6:16:50 PDT"]
[Termination "WelshTiger won by resignation"]

1. d4 {[%clk 0:04:52.9]} 1... d5 {[%clk 0:04:47]} 2. c4 {[%clk 0:04:51.7]} 2...
e6 {[%clk 0:04:42.4]} 3. Nc3 {[%clk 0:04:50.3]} 3... Nf6 {[%clk 0:04:40.9]} 4.
Nf3 {[%clk 0:04:49.2]} 4... c5 {[%clk 0:04:35.5]} 5. cxd5 {[%clk 0:04:46.6]}
5... exd5 {[%clk 0:04:35.4]} 6. g3 {[%clk 0:04:45.8]} 6... Nc6 {[%clk
0:04:34.3]} 7. Bg2 {[%clk 0:04:43.8]} 7... Be7 {[%clk 0:04:33.7]} 8. O-O {[%clk
0:04:38.6]} 8... O-O {[%clk 0:04:32.4]} 9. Bg5 {[%clk 0:04:36.4]} 9... c4 {[%clk
0:04:31.5]} 10. b3 {[%clk 0:03:53]} 10... Qa5 {[%clk 0:04:29]} 11. Rc1 {[%clk
0:03:47.8]} 11... Be6 {[%clk 0:04:04.8]} 12. bxc4 {[%clk 0:03:42.9]} 12... dxc4
{[%clk 0:03:57.1]} 13. e4 {[%clk 0:02:51]} 13... Rad8 {[%clk 0:03:40.8]} 14. d5
{[%clk 0:02:45.4]} 14... Bg4 {[%clk 0:03:39.9]} 15. Qc2 {[%clk 0:02:26.6]} 15...
Bxf3 {[%clk 0:03:38.2]} 16. Bxf3 {[%clk 0:02:21]} 16... Ne5 {[%clk 0:03:37.6]}
17. Bg2 {[%clk 0:02:04.5]} 17... h6 {[%clk 0:03:29.8]} 18. Be3 {[%clk 0:01:56]}
18... b5 {[%clk 0:03:26.7]} 19. Ne2 {[%clk 0:01:41.3]} 19... Nd3 {[%clk
0:03:24.5]} 20. Rb1 {[%clk 0:01:38.6]} 20... Bc5 {[%clk 0:03:16.5]} 21. Nd4
{[%clk 0:01:32.9]} 21... Bxd4 {[%clk 0:03:15.2]} 22. Bxd4 {[%clk 0:01:31.5]}
22... Nd7 {[%clk 0:03:06]} 23. Qc3 {[%clk 0:01:19.4]} 23... Qxc3 {[%clk
0:03:04]} 24. Bxc3 {[%clk 0:01:19.3]} 24... a6 {[%clk 0:03:02.8]} 25. a4 {[%clk
0:01:16.6]} 25... Rb8 {[%clk 0:02:58]} 26. axb5 {[%clk 0:01:14.4]} 26... axb5
{[%clk 0:02:57]} 27. Bb4 {[%clk 0:01:04.2]} 27... Nxb4 {[%clk 0:02:54.5]} 28.
Rxb4 {[%clk 0:01:04.1]} 28... Nc5 {[%clk 0:02:50.9]} 29. Rfb1 {[%clk 0:01:01.2]}
29... Nb3 {[%clk 0:02:49.5]} 30. Bf1 {[%clk 0:00:54.5]} 30... Rfc8 {[%clk
0:02:47.7]} 31. Kg2 {[%clk 0:00:50.7]} 31... Nd2 {[%clk 0:02:41.9]} 32. Rc1
{[%clk 0:00:46.9]} 32... Nxe4 {[%clk 0:02:38.8]} 33. Bxc4 {[%clk 0:00:43]} 33...
bxc4 {[%clk 0:02:36.9]} 34. Rbxc4 {[%clk 0:00:42.9]} 34... Rxc4 {[%clk
0:02:35.5]} 35. Rxc4 {[%clk 0:00:42.8]} 35... Nd6 {[%clk 0:02:34.8]} 36. Rc6
{[%clk 0:00:40.1]} 36... Rd8 {[%clk 0:02:33.8]} 37. h4 {[%clk 0:00:38.3]} 37...
h5 {[%clk 0:02:32.5]} 38. f3 {[%clk 0:00:36.6]} 38... Kh7 {[%clk 0:02:31.9]} 39.
g4 {[%clk 0:00:35.8]} 39... Kg6 {[%clk 0:02:30.7]} 40. Kg3 {[%clk 0:00:34.8]}
40... hxg4 {[%clk 0:02:28.3]} 41. Kxg4 {[%clk 0:00:33.7]} 41... Kf6 {[%clk
0:02:27.7]} 42. h5 {[%clk 0:00:32.5]} 42... Ke5 {[%clk 0:02:26.8]} 43. Rc5
{[%clk 0:00:30.9]} 43... Nf5 {[%clk 0:02:19.3]} 44. Rc7 {[%clk 0:00:28.7]} 44...
Nh6+ {[%clk 0:02:17.6]} 45. Kg5 {[%clk 0:00:26.8]} 45... Rxd5 {[%clk 0:02:15.8]}
46. f4+ {[%clk 0:00:25.8]} 46... Kd6+ {[%clk 0:02:15.2]} 47. f5 {[%clk
0:00:24.2]} 47... Rxf5+ {[%clk 0:02:13.7]} 0-1

[Event "Live Chess"]
[Site "Chess.com"]
[Date "2023.05.21"]
[Round "-"]
[White "Ayursworld"]
[Black "ProfPoisson"]
[Result "1-0"]
[WhiteElo "1411"]
[BlackElo "1209"]
[TimeControl "300"]
[EndTime "6:16:59 PDT"]
[Termination "Ayursworld won on time"]

1. e4 {[%clk 0:04:58.9]} 1... e5 {[%clk 0:04:55.6]} 2. Nf3 {[%clk 0:04:56.8]}
2... Nf6 {[%clk 0:04:51.6]} 3. Nc3 {[%clk 0:04:50.9]} 3... Nc6 {[%clk
0:04:48.2]} 4. d4 {[%clk 0:04:49.3]} 4... exd4 {[%clk 0:04:44.8]} 5. Nd5 {[%clk
0:04:44]} 5... Nxe4 {[%clk 0:04:35.9]} 6. Bd3 {[%clk 0:04:42.1]} 6... Nc5 {[%clk
0:04:32.4]} 7. Qe2+ {[%clk 0:04:39.2]} 7... Be7 {[%clk 0:04:26.9]} 8. Nxe7
{[%clk 0:04:36.4]} 8... Nxd3+ {[%clk 0:04:20.5]} 9. cxd3 {[%clk 0:04:32.8]} 9...
Qxe7 {[%clk 0:04:13.2]} 10. Qxe7+ {[%clk 0:04:29.8]} 10... Kxe7 {[%clk
0:04:10.2]} 11. O-O {[%clk 0:04:29.4]} 11... Re8 {[%clk 0:04:08.3]} 12. Re1+
{[%clk 0:04:26.3]} 12... Kf8 {[%clk 0:04:06.8]} 13. Rxe8+ {[%clk 0:04:23.1]}
13... Kxe8 {[%clk 0:04:04]} 14. b3 {[%clk 0:04:22.1]} 14... d5 {[%clk
0:04:01.8]} 15. Bb2 {[%clk 0:04:20.9]} 15... Bg4 {[%clk 0:03:45.1]} 16. Nxd4
{[%clk 0:04:15]} 16... Nxd4 {[%clk 0:03:43.3]} 17. Bxd4 {[%clk 0:04:12.7]} 17...
f6 {[%clk 0:03:40.6]} 18. f3 {[%clk 0:04:10.7]} 18... Bf5 {[%clk 0:03:37.5]} 19.
Rd1 {[%clk 0:04:07.4]} 19... b6 {[%clk 0:03:35.4]} 20. a3 {[%clk 0:04:05.4]}
20... c5 {[%clk 0:03:33.7]} 21. Bf2 {[%clk 0:04:03.8]} 21... d4 {[%clk
0:03:31.5]} 22. Rd2 {[%clk 0:03:59.3]} 22... Kd7 {[%clk 0:03:23.4]} 23. b4
{[%clk 0:03:56.4]} 23... Re8 {[%clk 0:03:17.4]} 24. g4 {[%clk 0:03:52.8]} 24...
Bg6 {[%clk 0:03:09.4]} 25. Kg2 {[%clk 0:03:50.5]} 25... h5 {[%clk 0:03:04.7]}
26. h3 {[%clk 0:03:48.8]} 26... hxg4 {[%clk 0:03:03]} 27. hxg4 {[%clk
0:03:47.3]} 27... a5 {[%clk 0:02:54.4]} 28. bxc5 {[%clk 0:03:37.4]} 28... bxc5
{[%clk 0:02:52]} 29. a4 {[%clk 0:03:35.6]} 29... Kc6 {[%clk 0:02:46.7]} 30. f4
{[%clk 0:03:32.3]} 30... Bf7 {[%clk 0:02:37.6]} 31. Kg3 {[%clk 0:03:29.9]} 31...
Bb3 {[%clk 0:02:35.4]} 32. Bg1 {[%clk 0:03:26.1]} 32... Bxa4 {[%clk 0:02:32.2]}
33. Ra2 {[%clk 0:03:24]} 33... Kb5 {[%clk 0:02:28.8]} 34. Rb2+ {[%clk
0:03:22.1]} 34... Kc6 {[%clk 0:02:20.6]} 35. Ra2 {[%clk 0:03:21]} 35... Bb5
{[%clk 0:02:15.9]} 36. Rxa5 {[%clk 0:03:18.1]} 36... Bxd3 {[%clk 0:02:14.2]} 37.
Ra3 {[%clk 0:03:15]} 37... Bc4 {[%clk 0:01:57.3]} 38. Ra7 {[%clk 0:03:10.2]}
38... g5 {[%clk 0:01:50]} 39. fxg5 {[%clk 0:03:01.2]} 39... fxg5 {[%clk
0:01:47.6]} 40. Rg7 {[%clk 0:02:55]} 40... Re5 {[%clk 0:01:41.3]} 41. Rg6+
{[%clk 0:02:52.2]} 41... Kd5 {[%clk 0:01:38.7]} 42. Rg7 {[%clk 0:02:46.5]} 42...
d3 {[%clk 0:01:34.9]} 43. Kh3 {[%clk 0:02:35.8]} 43... d2 {[%clk 0:01:32.6]} 44.
Rd7+ {[%clk 0:02:33.2]} 44... Ke6 {[%clk 0:01:20.6]} 45. Rxd2 {[%clk 0:02:30.8]}
45... Bf1+ {[%clk 0:01:16.8]} 46. Kg3 {[%clk 0:02:27]} 46... Rd5 {[%clk
0:01:07.8]} 47. Rc2 {[%clk 0:02:23.2]} 47... c4 {[%clk 0:01:00.3]} 48. Rc1
{[%clk 0:02:16.6]} 48... Bd3 {[%clk 0:00:56]} 49. Re1+ {[%clk 0:02:13.8]} 49...
Re5 {[%clk 0:00:54.2]} 50. Rc1 {[%clk 0:02:07.1]} 50... Kd5 {[%clk 0:00:46.1]}
51. Ra1 {[%clk 0:02:01.7]} 51... Kc6 {[%clk 0:00:38.3]} 52. Ra6+ {[%clk
0:01:58.9]} 52... Kb5 {[%clk 0:00:35.4]} 53. Ra8 {[%clk 0:01:54.3]} 53... c3
{[%clk 0:00:33.1]} 54. Rb8+ {[%clk 0:01:50.8]} 54... Kc4 {[%clk 0:00:26.9]} 55.
Rc8+ {[%clk 0:01:48.8]} 55... Kb3 {[%clk 0:00:25.5]} 56. Bd4 {[%clk 0:01:44]}
56... Re1 {[%clk 0:00:12.7]} 57. Rxc3+ {[%clk 0:01:41.8]} 57... Kb4 {[%clk
0:00:09.4]} 58. Rxd3 {[%clk 0:01:40.8]} 1-0

[Event "Live Chess"]
[Site "Chess.com"]
[Date "2023.05.21"]
[Round "-"]
[White "NatashaRegan"]
[Black "Vitalii18a"]
[Result "1/2-1/2"]
[WhiteElo "1712"]
[BlackElo "1134"]
[TimeControl "300"]
[EndTime "6:17:08 PDT"]
[Termination "Game drawn by repetition"]

1. e4 {[%clk 0:04:56.3]} 1... e5 {[%clk 0:04:58.7]} 2. f4 {[%clk 0:04:54.7]}
2... d6 {[%clk 0:04:55.9]} 3. Nf3 {[%clk 0:04:52.8]} 3... exf4 {[%clk
0:04:48.2]} 4. d4 {[%clk 0:04:50.6]} 4... Be7 {[%clk 0:04:45]} 5. Bxf4 {[%clk
0:04:46.9]} 5... Nf6 {[%clk 0:04:37.1]} 6. Nc3 {[%clk 0:04:23.4]} 6... Bg4
{[%clk 0:04:32.2]} 7. Be2 {[%clk 0:04:17.2]} 7... O-O {[%clk 0:04:23.1]} 8. O-O
{[%clk 0:04:15.7]} 8... c6 {[%clk 0:04:16.9]} 9. Qe1 {[%clk 0:04:07.4]} 9... Na6
{[%clk 0:04:09.5]} 10. Rd1 {[%clk 0:03:54.4]} 10... Nb4 {[%clk 0:04:06.9]} 11.
Qg3 {[%clk 0:03:48.7]} 11... Qd7 {[%clk 0:03:55.9]} 12. Bxd6 {[%clk 0:03:30.5]}
12... Bxd6 {[%clk 0:03:47.7]} 13. e5 {[%clk 0:03:20.6]} 13... Bxf3 {[%clk
0:03:38.8]} 14. Bxf3 {[%clk 0:03:16.5]} 14... Nxc2 {[%clk 0:03:12.8]} 15. exd6
{[%clk 0:03:11.8]} 15... Ne3 {[%clk 0:03:10.6]} 16. Qe5 {[%clk 0:02:59.6]} 16...
Nxf1 {[%clk 0:02:54.2]} 17. Rxf1 {[%clk 0:02:56.8]} 17... Rad8 {[%clk
0:02:49.2]} 18. Be4 {[%clk 0:02:46.8]} 18... Qg4 {[%clk 0:02:43.3]} 19. Bf5
{[%clk 0:02:40.6]} 19... Qh5 {[%clk 0:02:27.9]} 20. Rf3 {[%clk 0:02:33.3]} 20...
Rfe8 {[%clk 0:02:23]} 21. Qc5 {[%clk 0:02:11]} 21... Re1+ {[%clk 0:02:18.6]} 22.
Kf2 {[%clk 0:02:08.9]} 22... Rde8 {[%clk 0:02:01.8]} 23. d7 {[%clk 0:02:05.3]}
23... Nxd7 {[%clk 0:01:34.3]} 24. Bxd7 {[%clk 0:02:02.3]} 24... Qh4+ {[%clk
0:01:22.8]} 25. Rg3 {[%clk 0:01:58.9]} 25... Qf4+ {[%clk 0:01:15.3]} 26. Rf3
{[%clk 0:01:51.6]} 26... Qh4+ {[%clk 0:00:54.1]} 27. Rg3 {[%clk 0:01:50.5]}
27... Qf4+ {[%clk 0:00:52.3]} 28. Rf3 {[%clk 0:01:49.5]} 28... Qh4+ {[%clk
0:00:49.9]} 1/2-1/2

[Event "Live Chess"]
[Site "Chess.com"]
[Date "2023.05.21"]
[Round "-"]
[White "chessfiction"]
[Black "Missedidea"]
[Result "1-0"]
[WhiteElo "2316"]
[BlackElo "1789"]
[TimeControl "300"]
[EndTime "6:17:15 PDT"]
[Termination "chessfiction won by resignation"]

1. e4 {[%clk 0:04:56.9]} 1... c5 {[%clk 0:04:57.6]} 2. d4 {[%clk 0:04:56]} 2...
cxd4 {[%clk 0:04:56]} 3. c3 {[%clk 0:04:55.9]} 3... dxc3 {[%clk 0:04:53.9]} 4.
Nxc3 {[%clk 0:04:55.8]} 4... Nc6 {[%clk 0:04:51.4]} 5. Bg5 {[%clk 0:04:54.8]}
5... h6 {[%clk 0:04:48.6]} 6. Bh4 {[%clk 0:04:53.9]} 6... Qa5 {[%clk 0:04:40]}
7. Bc4 {[%clk 0:04:52]} 7... e6 {[%clk 0:04:29.4]} 8. Nf3 {[%clk 0:04:49.5]}
8... Nf6 {[%clk 0:04:23.3]} 9. O-O {[%clk 0:04:45.1]} 9... Be7 {[%clk
0:04:11.4]} 10. a3 {[%clk 0:04:34.6]} 10... a6 {[%clk 0:04:08.4]} 11. b4 {[%clk
0:04:32.7]} 11... Qd8 {[%clk 0:04:05.6]} 12. e5 {[%clk 0:04:30.8]} 12... Ng8
{[%clk 0:04:01.6]} 13. Bg3 {[%clk 0:04:29.1]} 13... g5 {[%clk 0:03:44.1]} 14.
Ne4 {[%clk 0:04:27.6]} 14... b5 {[%clk 0:03:32.2]} 15. Bb3 {[%clk 0:04:25.9]}
15... Bb7 {[%clk 0:03:29.5]} 16. Rc1 {[%clk 0:04:24.4]} 16... Qb6 {[%clk
0:03:16.4]} 17. Nd6+ {[%clk 0:04:22.5]} 17... Bxd6 {[%clk 0:03:14.2]} 18. Qxd6
{[%clk 0:04:21.7]} 18... Nge7 {[%clk 0:03:02.1]} 19. Rfd1 {[%clk 0:04:20.5]}
19... Rd8 {[%clk 0:02:54.4]} 20. h4 {[%clk 0:04:16.7]} 20... g4 {[%clk
0:02:46.5]} 21. Nd4 {[%clk 0:04:09.8]} 21... O-O {[%clk 0:02:36.5]} 22. Nxc6
{[%clk 0:04:04.1]} 22... Nxc6 {[%clk 0:02:28.4]} 23. Bf4 {[%clk 0:04:02.6]}
23... Kg7 {[%clk 0:02:16.5]} 24. Rc3 {[%clk 0:03:55.5]} 24... Qa7 {[%clk
0:02:00]} 25. Rg3 {[%clk 0:03:52.2]} 25... h5 {[%clk 0:01:53.3]} 26. Bg5 {[%clk
0:03:47.3]} 26... Rde8 {[%clk 0:01:38.7]} 27. Bf6+ {[%clk 0:03:46.1]} 27... Kg8
{[%clk 0:01:22.4]} 28. Qd2 {[%clk 0:03:44.5]} 28... Ne7 {[%clk 0:01:14]} 29.
Qg5+ {[%clk 0:03:36.5]} 29... Ng6 {[%clk 0:01:03.4]} 30. Qh6 {[%clk 0:03:35.1]}
1-0

[Event "Live Chess"]
[Site "Chess.com"]
[Date "2023.05.21"]
[Round "-"]
[White "JohanKjeldahl"]
[Black "LL220284LL"]
[Result "0-1"]
[WhiteElo "1877"]
[BlackElo "2277"]
[TimeControl "300"]
[EndTime "6:17:22 PDT"]
[Termination "LL220284LL won by checkmate"]

1. c4 {[%clk 0:04:57.4]} 1... c5 {[%clk 0:04:57.6]} 2. Nc3 {[%clk 0:04:56.2]}
2... Nc6 {[%clk 0:04:57.1]} 3. Nf3 {[%clk 0:04:55.2]} 3... Nf6 {[%clk
0:04:56.3]} 4. d4 {[%clk 0:04:52.9]} 4... cxd4 {[%clk 0:04:54.9]} 5. Nxd4 {[%clk
0:04:52.6]} 5... e6 {[%clk 0:04:51.8]} 6. e4 {[%clk 0:04:50.9]} 6... a6 {[%clk
0:04:49.7]} 7. Be3 {[%clk 0:04:47.8]} 7... Qc7 {[%clk 0:04:48.2]} 8. f3 {[%clk
0:04:45.9]} 8... d6 {[%clk 0:04:47.1]} 9. Be2 {[%clk 0:04:43.8]} 9... Be7 {[%clk
0:04:46]} 10. O-O {[%clk 0:04:43.2]} 10... O-O {[%clk 0:04:44.7]} 11. Rc1 {[%clk
0:04:41.8]} 11... b6 {[%clk 0:04:40.2]} 12. b3 {[%clk 0:04:34.7]} 12... Bb7
{[%clk 0:04:38.8]} 13. g4 {[%clk 0:04:20.3]} 13... Rac8 {[%clk 0:04:37.4]} 14.
g5 {[%clk 0:04:18.9]} 14... Nd7 {[%clk 0:04:36.3]} 15. h4 {[%clk 0:04:14.7]}
15... Rfe8 {[%clk 0:04:33.7]} 16. Nd5 {[%clk 0:04:05.1]} 16... exd5 {[%clk
0:04:30]} 17. cxd5 {[%clk 0:04:04.2]} 17... Nxd4 {[%clk 0:04:19.4]} 18. Rxc7
{[%clk 0:04:00.9]} 18... Nxe2+ {[%clk 0:04:18.5]} 19. Qxe2 {[%clk 0:03:58.9]}
19... Rxc7 {[%clk 0:04:18.1]} 20. Bd4 {[%clk 0:03:49.8]} 20... Rec8 {[%clk
0:04:14.9]} 21. Qg2 {[%clk 0:03:14.6]} 21... Rc2 {[%clk 0:04:10.4]} 22. Qg4
{[%clk 0:03:13.1]} 22... Ne5 {[%clk 0:04:04.4]} 23. Bxe5 {[%clk 0:03:11.9]}
23... dxe5 {[%clk 0:04:03.6]} 24. h5 {[%clk 0:03:01.2]} 24... Bc5+ {[%clk
0:04:00.8]} 25. Kh1 {[%clk 0:02:58.8]} 25... Be3 {[%clk 0:03:58.8]} 26. g6
{[%clk 0:02:53.5]} 26... hxg6 {[%clk 0:03:53.9]} 27. hxg6 {[%clk 0:02:52.3]}
27... fxg6 {[%clk 0:03:38.2]} 28. Qe6+ {[%clk 0:02:49.6]} 28... Kh7 {[%clk
0:03:35.2]} 29. Qxe5 {[%clk 0:02:40.2]} 29... Rf8 {[%clk 0:03:27.4]} 30. Qe6
{[%clk 0:02:28.9]} 30... Bc8 {[%clk 0:03:22.6]} 31. Qe7 {[%clk 0:02:21.2]} 31...
Rf4 {[%clk 0:03:14.1]} 32. Re1 {[%clk 0:02:12.4]} 32... Bc5 {[%clk 0:03:09.8]}
33. d6 {[%clk 0:02:09.6]} 33... Rd2 {[%clk 0:03:00.9]} 34. e5 {[%clk 0:02:02.3]}
34... Bb7 {[%clk 0:02:52.7]} 35. Qxb7 {[%clk 0:01:53.4]} 35... Rh4# {[%clk
0:02:51.4]} 0-1

[Event "Live Chess"]
[Site "Chess.com"]
[Date "2023.05.21"]
[Round "-"]
[White "domrobson"]
[Black "Ferrarifan27"]
[Result "0-1"]
[WhiteElo "1751"]
[BlackElo "2067"]
[TimeControl "300"]
[EndTime "6:17:23 PDT"]
[Termination "Ferrarifan27 won by resignation"]

1. d4 {[%clk 0:04:59.3]} 1... Nf6 {[%clk 0:04:58.6]} 2. c4 {[%clk 0:04:58.3]}
2... e6 {[%clk 0:04:57.8]} 3. Nf3 {[%clk 0:04:56.9]} 3... b6 {[%clk 0:04:53.9]}
4. a3 {[%clk 0:04:56.5]} 4... Bb7 {[%clk 0:04:52.3]} 5. Nc3 {[%clk 0:04:56.3]}
5... Be7 {[%clk 0:04:45.7]} 6. Bg5 {[%clk 0:04:54.6]} 6... O-O {[%clk
0:04:44.3]} 7. e3 {[%clk 0:04:52.7]} 7... d6 {[%clk 0:04:43.5]} 8. Bd3 {[%clk
0:04:50.4]} 8... Nbd7 {[%clk 0:04:42.6]} 9. O-O {[%clk 0:04:49.7]} 9... h6
{[%clk 0:04:42.1]} 10. Bh4 {[%clk 0:04:47.6]} 10... Re8 {[%clk 0:04:41.6]} 11.
e4 {[%clk 0:04:46.3]} 11... e5 {[%clk 0:04:39.8]} 12. d5 {[%clk 0:04:45.4]}
12... a5 {[%clk 0:04:37.9]} 13. b4 {[%clk 0:04:42.9]} 13... Nh5 {[%clk
0:04:27.1]} 14. Bxe7 {[%clk 0:04:39]} 14... Qxe7 {[%clk 0:04:26.3]} 15. Qe2
{[%clk 0:04:27.4]} 15... Nf4 {[%clk 0:04:24.5]} 16. Qc2 {[%clk 0:04:26.2]} 16...
Qf6 {[%clk 0:04:20.9]} 17. Nd2 {[%clk 0:04:21.6]} 17... Qg5 {[%clk 0:04:14.5]}
18. g3 {[%clk 0:04:14.1]} 18... h5 {[%clk 0:03:52.9]} 19. Nf3 {[%clk 0:04:08.3]}
19... Qg4 {[%clk 0:03:50.2]} 20. Be2 {[%clk 0:04:04.9]} 20... Nh3+ {[%clk
0:03:12.1]} 21. Kg2 {[%clk 0:04:01.8]} 21... Nf4+ {[%clk 0:03:11]} 22. Kg1
{[%clk 0:03:57.8]} 22... Nxe2+ {[%clk 0:03:06.3]} 23. Qxe2 {[%clk 0:03:56.1]}
23... Nf6 {[%clk 0:02:58.1]} 24. Nh4 {[%clk 0:03:51.5]} 24... Qxe2 {[%clk
0:02:55.2]} 25. Nxe2 {[%clk 0:03:49.9]} 25... Nxe4 {[%clk 0:02:54.1]} 0-1

[Event "Live Chess"]
[Site "Chess.com"]
[Date "2023.05.21"]
[Round "-"]
[White "McSlash1"]
[Black "Nazar_777"]
[Result "1-0"]
[WhiteElo "2005"]
[BlackElo "1569"]
[TimeControl "300"]
[EndTime "6:17:28 PDT"]
[Termination "McSlash1 won by checkmate"]

1. e4 {[%clk 0:04:59]} 1... e6 {[%clk 0:04:53.7]} 2. d4 {[%clk 0:04:57.1]} 2...
a6 {[%clk 0:04:52.8]} 3. f4 {[%clk 0:04:55.9]} 3... h5 {[%clk 0:04:51.8]} 4. Nf3
{[%clk 0:04:54.7]} 4... c5 {[%clk 0:04:51]} 5. d5 {[%clk 0:04:53.6]} 5... Nf6
{[%clk 0:04:49.5]} 6. Nc3 {[%clk 0:04:44.5]} 6... Ng4 {[%clk 0:04:47.5]} 7. h3
{[%clk 0:04:42.6]} 7... Nh6 {[%clk 0:04:46.3]} 8. Bd3 {[%clk 0:04:40.6]} 8... b5
{[%clk 0:04:45.2]} 9. b3 {[%clk 0:04:35.6]} 9... Qc7 {[%clk 0:04:41.3]} 10. O-O
{[%clk 0:04:31]} 10... Bd6 {[%clk 0:04:36.6]} 11. dxe6 {[%clk 0:04:29.7]} 11...
dxe6 {[%clk 0:04:35.1]} 12. e5 {[%clk 0:04:27.9]} 12... Be7 {[%clk 0:04:33]} 13.
Ne4 {[%clk 0:04:26.6]} 13... Nc6 {[%clk 0:04:30.1]} 14. a4 {[%clk 0:04:22.1]}
14... bxa4 {[%clk 0:04:27.8]} 15. Rxa4 {[%clk 0:04:15.9]} 15... Bb7 {[%clk
0:04:26.4]} 16. Ba3 {[%clk 0:04:10.9]} 16... Rc8 {[%clk 0:04:24.5]} 17. Bxa6
{[%clk 0:04:02.7]} 17... Bxa6 {[%clk 0:04:23]} 18. Rxa6 {[%clk 0:04:02.6]} 18...
Nd4 {[%clk 0:04:21.5]} 19. Nxd4 {[%clk 0:03:57.7]} 19... cxd4 {[%clk 0:04:20.5]}
20. Bxe7 {[%clk 0:03:57.4]} 20... Kxe7 {[%clk 0:04:17.7]} 21. Nd6 {[%clk
0:03:52.7]} 21... Nf5 {[%clk 0:04:12.9]} 22. Nxc8+ {[%clk 0:03:50.3]} 22... Rxc8
{[%clk 0:04:11.3]} 23. g4 {[%clk 0:03:46.6]} 23... Ne3 {[%clk 0:04:09.4]} 24.
Qxd4 {[%clk 0:03:43.6]} 24... Nxf1 {[%clk 0:03:50.5]} 25. Ra7 {[%clk 0:03:42.5]}
25... Qxa7 {[%clk 0:03:33.9]} 26. Qxa7+ {[%clk 0:03:42.4]} 26... Kf8 {[%clk
0:03:31.7]} 27. Kxf1 {[%clk 0:03:41.2]} 27... hxg4 {[%clk 0:03:30]} 28. hxg4
{[%clk 0:03:38.9]} 28... g6 {[%clk 0:03:28.9]} 29. Qd7 {[%clk 0:03:37.4]} 29...
Re8 {[%clk 0:03:27.4]} 30. b4 {[%clk 0:03:35.6]} 30... Kg7 {[%clk 0:03:26.4]}
31. Qxe8 {[%clk 0:03:34.6]} 31... g5 {[%clk 0:03:25]} 32. f5 {[%clk 0:03:33.3]}
32... exf5 {[%clk 0:03:23.6]} 33. gxf5 {[%clk 0:03:33.2]} 33... g4 {[%clk
0:03:22.5]} 34. b5 {[%clk 0:03:32]} 34... g3 {[%clk 0:03:21.4]} 35. Kg2 {[%clk
0:03:29.1]} 35... Kh6 {[%clk 0:03:19.7]} 36. Qxf7 {[%clk 0:03:26.1]} 36... Kg5
{[%clk 0:03:18.3]} 37. Qg6+ {[%clk 0:03:24.5]} 37... Kf4 {[%clk 0:03:16.1]} 38.
Qxg3+ {[%clk 0:03:23.2]} 38... Kxf5 {[%clk 0:03:15.3]} 39. b6 {[%clk 0:03:22.8]}
39... Ke6 {[%clk 0:03:14]} 40. b7 {[%clk 0:03:22.4]} 40... Kd7 {[%clk
0:03:13.3]} 41. b8=Q {[%clk 0:03:22]} 41... Kc6 {[%clk 0:03:12.5]} 42. Qc3+
{[%clk 0:03:19.2]} 42... Kd5 {[%clk 0:03:11.4]} 43. Qd6+ {[%clk 0:03:18.7]}
43... Ke4 {[%clk 0:03:10.5]} 44. Qcd3+ {[%clk 0:03:17.7]} 44... Kf4 {[%clk
0:03:09.4]} 45. e6+ {[%clk 0:03:17.6]} 45... Kg5 {[%clk 0:03:08]} 46. Q6g3+
{[%clk 0:03:17.5]} 46... Kf6 {[%clk 0:03:07]} 47. Qgg6+ {[%clk 0:03:15.2]} 47...
Ke7 {[%clk 0:03:06.1]} 48. Qd7+ {[%clk 0:03:14.5]} 48... Kf8 {[%clk 0:03:04.7]}
49. Qgf7# {[%clk 0:03:14.4]} 1-0

[Event "Live Chess"]
[Site "Chess.com"]
[Date "2023.05.21"]
[Round "-"]
[White "Leonid_Starozhilov"]
[Black "MovebyMove"]
[Result "1-0"]
[WhiteElo "2636"]
[BlackElo "2441"]
[TimeControl "300"]
[EndTime "6:17:30 PDT"]
[Termination "Leonid_Starozhilov won by resignation"]

1. e4 {[%clk 0:04:57.5]} 1... c5 {[%clk 0:04:58.1]} 2. Nf3 {[%clk 0:04:56.4]}
2... Nc6 {[%clk 0:04:56.5]} 3. Bb5 {[%clk 0:04:54.3]} 3... g6 {[%clk 0:04:53.3]}
4. O-O {[%clk 0:04:52.9]} 4... Bg7 {[%clk 0:04:50.7]} 5. Nc3 {[%clk 0:04:51.9]}
5... d6 {[%clk 0:04:38.4]} 6. Bxc6+ {[%clk 0:04:47.9]} 6... bxc6 {[%clk
0:04:37]} 7. e5 {[%clk 0:04:47.1]} 7... dxe5 {[%clk 0:04:31.9]} 8. Re1 {[%clk
0:04:46.2]} 8... Qc7 {[%clk 0:04:26.3]} 9. Ne4 {[%clk 0:04:40.9]} 9... Nf6
{[%clk 0:04:20.4]} 10. Nxc5 {[%clk 0:04:39]} 10... Nd7 {[%clk 0:04:05.6]} 11.
Ne4 {[%clk 0:04:30.3]} 11... f5 {[%clk 0:03:50.4]} 12. Nc3 {[%clk 0:04:28.9]}
12... e4 {[%clk 0:03:44.8]} 13. Ng5 {[%clk 0:04:27.5]} 13... Nf6 {[%clk
0:03:30.5]} 14. d3 {[%clk 0:04:26.3]} 14... h6 {[%clk 0:03:29.1]} 15. Nh3 {[%clk
0:04:24.9]} 15... exd3 {[%clk 0:03:23.6]} 16. Qxd3 {[%clk 0:04:24.3]} 16... O-O
{[%clk 0:03:03.5]} 17. Bf4 {[%clk 0:04:20.4]} 17... Qd7 {[%clk 0:02:47.6]} 18.
Qxd7 {[%clk 0:04:11.1]} 18... Bxd7 {[%clk 0:02:46.2]} 19. Rxe7 {[%clk
0:04:10.8]} 19... Rfe8 {[%clk 0:02:44.5]} 20. Rae1 {[%clk 0:04:03.7]} 20... Nd5
{[%clk 0:02:35.7]} 21. Rxe8+ {[%clk 0:04:00.8]} 21... Rxe8 {[%clk 0:02:23.5]}
22. Rxe8+ {[%clk 0:03:58.9]} 22... Bxe8 {[%clk 0:02:22.6]} 23. Nxd5 {[%clk
0:03:58.4]} 23... cxd5 {[%clk 0:02:21.5]} 24. b3 {[%clk 0:03:52.3]} 24... g5
{[%clk 0:02:16.7]} 25. Bd2 {[%clk 0:03:48.1]} 25... f4 {[%clk 0:02:12.3]} 26. f3
{[%clk 0:02:57.3]} 26... Bg6 {[%clk 0:02:00.1]} 27. c3 {[%clk 0:02:52.7]} 27...
Bb1 {[%clk 0:01:37.6]} 28. a3 {[%clk 0:02:49.4]} 28... Bc2 {[%clk 0:01:34.5]}
29. b4 {[%clk 0:02:47.7]} 29... d4 {[%clk 0:01:33.8]} 30. c4 {[%clk 0:02:45]}
30... Kf7 {[%clk 0:01:08.9]} 31. Kf2 {[%clk 0:02:38.6]} 31... Bb3 {[%clk
0:01:03]} 32. c5 {[%clk 0:02:35.4]} 32... Ke6 {[%clk 0:01:02.1]} 33. Ke1 {[%clk
0:02:32.8]} 33... Kd5 {[%clk 0:00:58.3]} 34. Nf2 {[%clk 0:02:31.6]} 34... Bc2
{[%clk 0:00:51.9]} 35. Ke2 {[%clk 0:02:13.5]} 35... Ba4 {[%clk 0:00:42.5]} 36.
Ne4 {[%clk 0:02:07.5]} 36... Bc2 {[%clk 0:00:28.1]} 37. Be1 {[%clk 0:01:49.2]}
37... Bxe4 {[%clk 0:00:22.2]} 38. fxe4+ {[%clk 0:01:48.4]} 38... Kxe4 {[%clk
0:00:21.2]} 39. b5 {[%clk 0:01:40.8]} 39... d3+ {[%clk 0:00:20.1]} 40. Kd1
{[%clk 0:01:39.5]} 40... Bd4 {[%clk 0:00:18.3]} 41. c6 {[%clk 0:01:36.7]} 41...
g4 {[%clk 0:00:16.5]} 42. c7 {[%clk 0:01:34.3]} 1-0